fUSD/lending_fUSD_20260408
["ID","MTS","AMOUNT","RATE_DAILY","PERIOD"]
[420040493,1775629846273,-500.0,0.00013698,2]
[420040494,1775629846284,-500.0,0.00013698,2]
[420040495,1775629846295,-633.831471,0.00013698,2]
[420040496,1775629846307,-500.0,0.00013698,2]
[420040497,1775629846319,-500.0,0.00013698,2]
[420040498,1775629846331,-500.0,0.00013698,2]
[420040499,1775629846342,-500.0,0.00013698,2]
[420040500,1775629846353,-500.0,0.00013698,2]
[420040501,1775629846364,-500.0,0.00013698,2]
[420040502,1775629846375,-500.0,0.00013698,2]
[420040503,1775629846386,-500.0,0.00013698,2]
[420040504,1775629846397,-500.0,0.00013698,2]
[420040505,1775629846408,-500.0,0.00013698,2]
[420040506,1775629846418,-500.0,0.00013698,2]
[420040507,1775629846429,-500.0,0.00013698,2]
[420040508,1775629846440,-500.0,0.00013698,2]
[420040509,1775629846451,-500.0,0.00013698,2]
[420040510,1775629846461,-500.0,0.00013698,2]
[420040511,1775629846473,-500.0,0.00013698,2]
[420040512,1775629846484,-500.0,0.00013698,2]
[420040513,1775629846496,-500.0,0.00013698,2]
[420040514,1775629846508,-500.0,0.00013698,2]
[420040515,1775629846518,-500.0,0.00013698,2]
[420040516,1775629846528,-500.0,0.00013698,2]
[420040517,1775629846539,-637.2484516,0.00013698,2]
[420040518,1775629846550,-500.0,0.00013698,2]
[420040519,1775629846561,-500.0,0.00013698,2]
[420040520,1775629846572,-500.0,0.00013698,2]
[420040521,1775629846583,-500.0,0.00013698,2]
[420040522,1775629846593,-500.0,0.00013698,2]
[420040523,1775629846604,-500.0,0.00013698,2]
[420040524,1775629846614,-500.0,0.00013698,2]
[420040525,1775629846625,-500.0,0.00013698,2]
[420040526,1775629846637,-500.0,0.00013698,2]
[420040527,1775629846647,-500.0,0.00013698,2]
[420040528,1775629846658,-500.0,0.00013698,2]
[420040529,1775629846669,-500.0,0.00013698,2]
[420040530,1775629846679,-500.0,0.00013698,2]
[420040531,1775629846690,-522.8150328,0.00013698,2]
[420040532,1775629846700,-500.0,0.00013698,2]
[420040533,1775629846711,-500.0,0.00013698,2]
[420040534,1775629846723,-500.0,0.00013698,2]
[420040535,1775629846735,-500.0,0.00013698,2]
[420040536,1775629846746,-500.0,0.00013698,2]
[420040537,1775629846757,-500.0,0.00013698,2]
[420040538,1775629846767,-500.0,0.00013698,2]
[420040540,1775629846780,-595.48595604,0.00013698,2]
[420040542,1775629846790,-2138.0,0.00013699,2]
[420040544,1775629846801,-150.0,0.00013699,2]
[420040546,1775629846812,-150.0,0.00013699,2]
[420040548,1775629846824,-150.0,0.00013699,2]
[420040551,1775629846837,-150.0,0.00013699,2]
[420040553,1775629846848,-166.66,0.00013699,2]
[420040555,1775629846859,-343.26,0.00013699,2]
[420040557,1775629846871,-418.94,0.00013699,2]
[420040559,1775629846882,-349.12,0.00013699,2]
[420040561,1775629846893,-290.93,0.00013699,2]
[420040563,1775629846906,-242.45,0.00013699,2]
[420040565,1775629846916,-202.04,0.00013699,2]
[420040567,1775629846927,-168.36,0.00013699,2]
[420040569,1775629846938,-841.85,0.00013699,2]
[420040570,1775629846949,-2202.78,0.00013699,2]
[420040571,1775629846960,-500.0,0.00013699,2]
[420040572,1775629846970,-501.69020237,0.00013699,2]
[420040573,1775629846981,-500.0,0.00013699,2]
[420040574,1775629846991,-500.0,0.00013699,2]
[420040575,1775629847002,-501.53334874,0.00013699,2]
[420040576,1775629847013,-500.0,0.00013699,2]
[420040577,1775629847023,-500.0,0.00013699,2]
[420040578,1775629847034,-500.0,0.00013699,2]
[420040579,1775629847045,-500.0,0.00013699,2]
[420040580,1775629847056,-500.0,0.00013699,2]
[420040581,1775629847068,-500.0,0.00013699,2]
[420040582,1775629847078,-500.0,0.00013699,2]
[420040583,1775629847089,-500.0,0.00013699,2]
[420040584,1775629847100,-500.0,0.00013699,2]
[420040585,1775629847110,-500.0,0.00013699,2]
[420040586,1775629847121,-500.0,0.00013699,2]
[420040587,1775629847131,-500.0,0.00013699,2]
[420040588,1775629847142,-516.67152996,0.00013699,2]
[420040589,1775629847153,-500.0,0.00013699,2]
[420040590,1775629847164,-500.0,0.00013699,2]
[420040591,1775629847174,-500.0,0.00013699,2]
[420040592,1775629847185,-164.42313659,0.00013699,2]
[420040593,1775629847196,-500.0,0.00013699,2]
[420040594,1775629847206,-500.47050729,0.00013699,2]
[420040595,1775629847217,-503.98766467,0.00013699,2]
[420040596,1775629847228,-244.23047354,0.00013699,2]
[420040597,1775629847358,-500.32940014,0.00013699,2]
[420040598,1775629847368,-500.68321897,0.00013699,2]
[420040599,1775629847379,-500.0,0.00013699,2]
[420040600,1775629847390,-500.0,0.00013699,2]
[420040601,1775629847401,-500.0,0.00013699,2]
[420040602,1775629847412,-500.27274938,0.00013699,2]
[420040603,1775629847425,-500.0,0.00013699,2]
[420040604,1775629847436,-163.86569709,0.00013699,2]
[420040605,1775629847447,-500.0,0.00013699,2]
[420040606,1775629847458,-500.0,0.00013699,2]
[420040607,1775629847468,-500.0,0.00013699,2]
[420040608,1775629847478,-288.28066678,0.00013699,2]
[420040609,1775629847488,-500.0,0.00013699,2]
[420040610,1775629847500,-500.0,0.00013699,2]
[420040611,1775629847510,-290.88257095,0.00013699,2]
[420040612,1775629847522,-474.64837932,0.00013699,2]
[420040613,1775629847532,-151.95074161,0.00013699,2]
[420040614,1775629847544,-964.0,0.00013699,2]
[420040615,1775629847553,-964.0,0.00013699,2]
[420040616,1775629847565,-964.0,0.00013699,2]
[420040617,1775629847575,-964.0,0.00013699,2]
[420040618,1775629847585,-964.0,0.00013699,2]
[420040619,1775629847597,-964.0,0.00013699,2]
[420040620,1775629847607,-964.0,0.00013699,2]
[420040621,1775629847617,-964.0,0.00013699,2]
[420040622,1775629847627,-964.0,0.00013699,2]
[420040623,1775629847637,-964.0,0.00013699,2]
[420040624,1775629847647,-964.0,0.00013699,2]
[420040625,1775629847658,-964.0,0.00013699,2]
[420040626,1775629847668,-964.0,0.00013699,2]
[420040627,1775629847678,-964.0,0.00013699,2]
[420040628,1775629847689,-964.0,0.00013699,2]
[420040629,1775629847699,-964.0,0.00013699,2]
[420040630,1775629847710,-964.0,0.00013699,2]
[420040631,1775629847720,-964.0,0.00013699,2]
[420040632,1775629847730,-964.0,0.00013699,2]
[420040633,1775629847740,-964.0,0.00013699,2]
[420040634,1775629847751,-964.0,0.00013699,2]
[420040635,1775629847762,-964.0,0.00013699,2]
[420040636,1775629847772,-964.0,0.00013699,2]
[420040637,1775629847782,-985.24465103,0.00013699,2]
[420040638,1775629847792,-158.15239998,0.00013699,2]
[420040639,1775629847803,-1000.0,0.00013699,2]
[420040640,1775629847813,-1000.0,0.00013699,15]
[420040641,1775629847823,-191.4154,0.000137,2]
[420040642,1775629847833,-3292.0,0.00013708,2]
[420040643,1775629847843,-166.66,0.00013836,2]
[420040644,1775629847853,-150.0,0.00013973,2]
[420040645,1775629847863,-150.0,0.00013973,2]
[420040646,1775629847872,-166.66,0.00013973,2]
[420040647,1775629847882,-4733.74989347,0.0001399,2]
[420040648,1775629847892,-150.0,0.00014049,2]
[420040649,1775629847903,-150.0,0.00014049,2]
[420040650,1775629847913,-150.0,0.00014049,2]
[420040651,1775629847923,-5622.39,0.00014069,2]
[420040652,1775629847934,-166.66,0.0001411,2]
[420040653,1775629847945,-12179.12217488,0.00014111,2]
[420040654,1775629847955,-33107.94811013,0.00014111,2]
[420040655,1775629847965,-500.0,0.00014238,2]
[420040656,1775629847976,-686.05,0.00014238,2]
[420040657,1775629847986,-500.0,0.00014238,2]
[420040658,1775629847996,-166.66,0.00014247,2]
[420040659,1775629848005,-150.0,0.00014247,2]
[420040660,1775629848016,-150.0,0.00014247,2]
[420040661,1775629848026,-242.46089406,0.00014247,2]
[420040662,1775629848036,-763.74027783,0.00014247,2]
[420040663,1775629848047,-1000.0,0.00014247,2]
[420040664,1775629848056,-1000.0,0.00014247,2]
[420040665,1775629848066,-1000.0,0.00014247,2]
[420040666,1775629848076,-1144.24089955,0.00014247,2]
[420040667,1775629848086,-172.70630045,0.00014247,2]
[420040668,1775629848096,-1000.0,0.00014247,2]
[420040669,1775629848108,-882.1111067,0.00014247,2]
[420040670,1775629848117,-1000.0,0.00014247,2]
[420040671,1775629848127,-1000.0,0.00014247,2]
[420040672,1775629848136,-1000.0,0.00014247,2]
[420040673,1775629848147,-501.42736732,0.00014247,2]
[420040674,1775629848156,-1000.0,0.00014247,2]
[420040675,1775629848166,-507.0,0.00014295,3]
[420040676,1775629848176,-178.99,0.00014335,2]
[420040677,1775629848186,-166.66,0.00014384,2]
[420040678,1775629848196,-2000.0,0.00014576,2]
[420040679,1775629848207,-282.85089919,0.00014605,2]
[420040680,1775629848217,-12179.12217488,0.00014746,2]
[420040681,1775629848227,-33107.94811013,0.00014746,2]
[420040682,1775629848237,-250.0,0.00014795,2]
[420040683,1775629848247,-1500.0,0.00014795,2]
[420040684,1775629848258,-1500.0,0.00014795,2]
[420040685,1775629848268,-1500.0,0.00014795,2]
[420040686,1775629848277,-1500.0,0.00014795,2]
[420040687,1775629848287,-1500.0,0.00014795,2]
[420040688,1775629848298,-1500.0,0.00014795,2]
[420040689,1775629848309,-1500.0,0.00014795,2]
[420040690,1775629848319,-1500.0,0.00014795,2]
[420040691,1775629848329,-2000.0,0.00014814,2]
[420040692,1775629848339,-277.52815516,0.00014912,2]
[420040693,1775629848350,-586.8058274,0.00014912,2]
[420040694,1775629848361,-1252.0,0.00014976,2]
[420040695,1775629848371,-216.2319,0.00015,2]
[420040696,1775629848381,-160.0,0.00015,2]
[420040697,1775629848391,-1573.0,0.00015038,2]
[420040698,1775629848403,-344.0,0.00015061,2]
[420040699,1775629848413,-4609.0,0.00015079,2]
[420040700,1775629848423,-600.0,0.00015143,2]
[420040701,1775629848434,-2000.0,0.00015342,2]
[420040702,1775629848444,-2000.0,0.00015342,2]
[420040703,1775629848454,-1951.88193642,0.00015342,2]
[420040704,1775629848464,-2000.0,0.00015342,2]
[420040705,1775629848474,-501.38361513,0.00015342,2]
[420040706,1775629848484,-503.63625007,0.00015342,2]
[420040707,1775629848495,-2000.0,0.00015342,2]
[420040708,1775629848505,-1531.17708776,0.00015342,2]
[420040709,1775629848515,-856.67948,0.00015346,2]
[420040710,1775629848525,-359.978651,0.00015353,2]
[420040711,1775629848535,-12179.12217488,0.00015381,2]
[420040712,1775629848545,-33107.94811013,0.00015381,2]
[420040713,1775629848556,-933.808644,0.00015436,7]
[420040714,1775629848566,-512.37,0.00015471,2]
[420040715,1775629848576,-5024.31,0.00015471,2]
[420040716,1775629848587,-1050.6,0.00015471,2]
[420040717,1775629848597,-3034.76,0.00015471,2]
[420040718,1775629848607,-507.0,0.00015489,4]
[420040719,1775629848618,-4000.0,0.00015507,2]
[420040720,1775629848628,-392.00957995,0.00015521,2]
[420040721,1775629848638,-9781.697839,0.000157,2]
[420040722,1775629848647,-500.0,0.00015808,2]
[420040723,1775629848657,-500.0,0.00015808,2]
[420040724,1775629848667,-396.4808442,0.00015808,2]
[420040725,1775629848678,-2202.78,0.00015862,2]
[420040726,1775629848688,-168.893564,0.00015867,7]
[420040727,1775629848697,-500.0,0.0001589,2]
[420040728,1775629848707,-500.0,0.0001589,2]
[420040729,1775629848716,-177.05503597,0.0001589,2]
[420040730,1775629848725,-2500.0,0.0001589,2]
[420040731,1775629848734,-1346.46562521,0.0001589,2]
[420040732,1775629848744,-2500.0,0.0001589,2]
[420040733,1775629848754,-1502.28581045,0.0001589,2]
[420040734,1775629848765,-4000.0,0.00015895,2]
[420040735,1775629848775,-184.01842302,0.000159,2]
[420040736,1775629848784,-2415.40296275,0.00015925,2]
[420040737,1775629848794,-33107.94811013,0.00016016,2]
[420040738,1775629848804,-12179.12217488,0.00016016,2]
[420040739,1775629848813,-402.56716046,0.00016068,2]
[420040740,1775629848823,-150.0,0.00016077,2]
[420040741,1775629848833,-150.0,0.00016077,2]
[420040742,1775629848843,-150.0,0.00016077,2]
[420040743,1775629848853,-150.0,0.00016077,2]
[420040744,1775629848863,-150.0,0.00016077,2]
[420040745,1775629848873,-150.0,0.00016077,2]
[420040746,1775629848883,-150.0,0.00016077,2]
[420040747,1775629848893,-150.0,0.00016077,2]
[420040748,1775629848902,-150.0,0.00016077,2]
[420040749,1775629848912,-150.0,0.00016077,2]
[420040750,1775629848921,-150.13966067,0.00016077,2]
[420040751,1775629848931,-150.0,0.00016077,2]
[420040752,1775629848940,-150.0,0.00016077,2]
[420040753,1775629848950,-164.73774504,0.000161,2]
[420040754,1775629848960,-150.0,0.00016114,2]
[420040755,1775629848969,-9999.99,0.00016116,2]
[420040756,1775629848978,-150.0,0.00016123,2]
[420040757,1775629848988,-150.0,0.00016124,2]
[420040758,1775629848997,-150.0,0.00016128,2]
[420040759,1775629849007,-150.0,0.00016138,2]
[420040760,1775629849016,-150.0,0.00016141,2]
[420040761,1775629849026,-150.0,0.00016151,2]
[420040762,1775629849035,-150.0,0.00016168,2]
[420040763,1775629849045,-150.0,0.00016171,2]
[420040764,1775629849054,-854.33941891,0.00016172,2]
[420040765,1775629849064,-150.0,0.00016179,2]
[420040766,1775629849075,-150.0,0.00016188,2]
[420040767,1775629849085,-150.0,0.00016196,2]
[420040768,1775629849094,-150.0,0.000162,2]
[420040769,1775629849104,-150.0,0.00016204,2]
[420040770,1775629849115,-150.0,0.00016214,2]
[420040771,1775629849125,-150.0,0.00016218,2]
[420040772,1775629849134,-150.0,0.00016226,2]
[420040773,1775629849144,-402.56716046,0.00016228,2]
[420040774,1775629849153,-150.0,0.0001623,2]
[420040775,1775629849164,-150.0,0.0001626,2]
[420040776,1775629849174,-150.0,0.00016262,2]
[420040777,1775629849185,-150.0,0.00016263,2]
[420040778,1775629849195,-150.0,0.00016265,2]
[420040779,1775629849205,-150.0,0.00016268,2]
[420040780,1775629849215,-150.0,0.00016275,2]
[420040781,1775629849225,-150.0,0.00016275,2]
[420040782,1775629849234,-150.0,0.00016281,2]
[420040783,1775629849243,-4000.0,0.00016282,2]
[420040784,1775629849253,-578.20924308,0.00016293,2]
[420040785,1775629849263,-181.08010149,0.00016293,2]
[420040786,1775629849274,-623.58710448,0.00016293,2]
[420040787,1775629849284,-200.0,0.00016293,2]
[420040788,1775629849294,-4371.86931636,0.00016293,2]
[420040789,1775629849305,-500.0,0.00016293,2]
[420040790,1775629849316,-1235.18214925,0.00016293,2]
[420040791,1775629849326,-1000.0,0.00016293,2]
[420040792,1775629849337,-1000.0,0.00016293,2]
[420040793,1775629849348,-292.18486671,0.00016293,2]
[420040794,1775629849357,-151.0,0.00016293,2]
[420040795,1775629849367,-743.50770149,0.00016293,2]
[420040796,1775629849377,-174.61919141,0.00016293,2]
[420040797,1775629849387,-591.41950389,0.00016293,2]
[420040798,1775629849397,-170.0,0.00016293,2]
[420040799,1775629849406,-170.0,0.00016293,2]
[420040800,1775629849416,-170.0,0.00016293,2]
[420040801,1775629849425,-170.0,0.00016293,2]
[420040802,1775629849435,-285.62441693,0.00016293,2]
[420040803,1775629849444,-170.0,0.00016293,2]
[420040804,1775629849454,-170.0,0.00016293,2]
[420040805,1775629849463,-170.0,0.00016293,2]
[420040806,1775629849473,-170.0,0.00016293,2]
[420040807,1775629849482,-170.0,0.00016293,2]
[420040808,1775629849492,-170.0,0.00016293,2]
[420040809,1775629849501,-170.0,0.00016293,2]
[420040810,1775629849511,-170.0,0.00016293,2]
[420040811,1775629849521,-170.0,0.00016293,2]
[420040812,1775629849531,-1500.0,0.00016293,2]
[420040813,1775629849540,-170.0,0.00016293,2]
[420040814,1775629849550,-1532.75885711,0.00016293,2]
[420040815,1775629849559,-170.0,0.00016293,2]
[420040816,1775629849569,-244.2658,0.000163,2]
[420040817,1775629849579,-150.0,0.000163,2]
[420040818,1775629849589,-150.0,0.00016306,2]
[420040819,1775629849599,-150.0,0.00016312,2]
[420040820,1775629849610,-150.0,0.00016315,2]
[420040821,1775629849619,-150.0,0.00016323,2]
[420040822,1775629849628,-150.0,0.00016332,2]
[420040823,1775629849637,-150.0,0.00016332,2]
[420040824,1775629849646,-150.0,0.00016337,2]
[420040825,1775629849656,-500.0,0.00016348,2]
[420040826,1775629849665,-151.0,0.00016348,2]
[420040827,1775629849675,-150.0,0.00016352,2]
[420040828,1775629849685,-150.0,0.00016359,2]
[420040829,1775629849695,-150.0,0.00016374,2]
[420040830,1775629849704,-150.0,0.00016383,2]
[420040831,1775629849714,-150.0,0.00016385,2]
[420040832,1775629849724,-402.56716046,0.00016387,2]
[420040833,1775629849733,-150.0,0.00016396,2]
[420040834,1775629849743,-150.0,0.00016397,2]
[420040835,1775629849753,-500.0,0.00016403,2]
[420040836,1775629849762,-151.0,0.00016403,2]
[420040837,1775629849772,-150.0,0.00016406,2]
[420040838,1775629849781,-150.0,0.00016412,2]
[420040839,1775629849791,-150.0,0.00016434,2]
[420040840,1775629849801,-150.0,0.00016434,2]
[420040841,1775629849811,-229.14,0.00016438,2]
[420040842,1775629849821,-3000.0,0.00016438,2]
[420040843,1775629849830,-3000.0,0.00016438,2]
[420040844,1775629849840,-150.0,0.00016443,2]
[420040845,1775629849850,-150.0,0.00016446,2]
[420040846,1775629849860,-150.0,0.00016449,2]
[420040847,1775629849870,-2129.0,0.0001645,2]
[420040848,1775629849880,-150.0,0.00016453,2]
[420040849,1775629849889,-500.0,0.00016458,2]
[420040850,1775629849899,-151.0,0.00016458,2]
[420040851,1775629849908,-150.0,0.00016459,2]
[420040852,1775629849918,-150.0,0.00016474,2]
[420040853,1775629849928,-150.0,0.00016474,2]
[420040854,1775629849939,-150.0,0.00016485,2]
[420040855,1775629849948,-150.0,0.00016486,2]
[420040856,1775629849959,-150.0,0.00016489,2]
[420040857,1775629849968,-150.0,0.000165,2]
[420040858,1775629849978,-150.0,0.00016508,2]
[420040859,1775629849988,-500.0,0.00016513,2]
[420040860,1775629849998,-151.0,0.00016513,2]
[420040861,1775629850008,-150.0,0.00016523,2]
[420040862,1775629850018,-150.0,0.00016523,2]
[420040863,1775629850028,-2000.0,0.00016523,2]
[420040864,1775629850037,-2000.0,0.00016523,2]
[420040865,1775629850047,-2000.0,0.00016523,2]
[420040866,1775629850056,-2000.0,0.00016523,2]
[420040867,1775629850066,-2000.0,0.00016523,2]
[420040868,1775629850076,-2000.0,0.00016523,2]
[420040869,1775629850085,-2000.0,0.00016523,2]
[420040870,1775629850094,-2000.0,0.00016523,2]
[420040871,1775629850104,-2000.0,0.00016523,2]
[420040872,1775629850113,-2000.0,0.00016523,2]
[420040873,1775629850124,-150.0,0.00016535,2]
[420040874,1775629850133,-150.0,0.00016536,2]
[420040875,1775629850142,-150.0,0.00016547,2]
[420040876,1775629850152,-150.0,0.00016553,2]
[420040877,1775629850162,-150.0,0.00016561,2]
[420040878,1775629850172,-500.0,0.00016568,2]
[420040879,1775629850181,-151.0,0.00016568,2]
[420040880,1775629850192,-150.0,0.00016569,2]
[420040881,1775629850201,-155.49037491,0.00016576,2]
[420040882,1775629850211,-150.0,0.00016581,2]
[420040883,1775629850221,-2000.0,0.00016581,2]
[420040884,1775629850230,-2000.0,0.00016581,2]
[420040885,1775629850240,-2000.0,0.00016581,2]
[420040886,1775629850249,-2000.0,0.00016581,2]
[420040887,1775629850258,-2000.0,0.00016581,2]
[420040888,1775629850268,-2000.0,0.00016581,2]
[420040889,1775629850279,-2000.0,0.00016581,2]
[420040890,1775629850289,-2000.0,0.00016581,2]
[420040891,1775629850298,-2000.0,0.00016581,2]
[420040892,1775629850308,-2000.0,0.00016581,2]
[420040893,1775629850319,-6453.0,0.00016587,2]
[420040894,1775629850329,-150.0,0.00016587,2]
[420040895,1775629850339,-150.0,0.00016587,2]
[420040896,1775629850348,-150.0,0.00016594,2]
[420040897,1775629850358,-178.99,0.00016594,2]
[420040898,1775629850368,-150.0,0.00016598,2]
[420040899,1775629850377,-500.0,0.00016623,2]
[420040900,1775629850388,-151.0,0.00016623,2]
[420040901,1775629850399,-150.0,0.00016626,2]
[420040902,1775629850409,-150.0,0.00016631,2]
[420040903,1775629850419,-150.0,0.00016635,2]
[420040904,1775629850429,-150.0,0.00016638,2]
[420040905,1775629850439,-150.0,0.00016641,2]
[420040906,1775629850449,-150.0,0.00016651,2]
[420040907,1775629850459,-4000.0,0.0001667,2]
[420040908,1775629850468,-150.0,0.00016672,2]
[420040909,1775629850478,-150.0,0.00016672,2]
[420040910,1775629850487,-150.0,0.00016672,2]
[420040911,1775629850497,-150.0,0.00016672,2]
[420040912,1775629850506,-150.0,0.00016672,2]
[420040913,1775629850517,-150.0,0.00016672,2]
[420040914,1775629850526,-500.0,0.00016678,2]
[420040915,1775629850536,-151.0,0.00016678,2]
[420040916,1775629850546,-507.0,0.00016684,5]
[420040917,1775629850555,-150.0,0.00016688,2]
[420040918,1775629850565,-150.0,0.00016689,2]
[420040919,1775629850576,-150.0,0.00016693,2]
[420040920,1775629850586,-150.0,0.00016709,2]
[420040921,1775629850596,-150.0,0.00016715,2]
[420040922,1775629850606,-150.0,0.00016718,2]
[420040923,1775629850616,-500.0,0.00016733,2]
[420040924,1775629850625,-151.0,0.00016733,2]
[420040925,1775629850635,-150.0,0.00016735,2]
[420040926,1775629850645,-280.99,0.00016739,2]
[420040927,1775629850655,-150.0,0.0001674,2]
[420040928,1775629850665,-150.0,0.00016747,2]
[420040929,1775629850675,-150.0,0.00016754,2]
[420040930,1775629850686,-150.0,0.00016764,2]
[420040931,1775629850697,-150.0,0.00016778,2]
[420040932,1775629850708,-150.0,0.00016782,2]
[420040933,1775629850717,-150.0,0.00016784,2]
[420040934,1775629850727,-500.0,0.00016788,2]
[420040935,1775629850737,-151.0,0.00016788,2]
[420040936,1775629850746,-150.0,0.00016791,2]
[420040937,1775629850755,-150.0,0.00016791,2]
[420040938,1775629850764,-280.99,0.000168,2]
[420040939,1775629850774,-150.0,0.0001681,2]
[420040940,1775629850783,-150.0,0.00016816,2]
[420040941,1775629850793,-150.0,0.00016821,2]
[420040942,1775629850802,-150.0,0.00016829,2]
[420040943,1775629850812,-187.78006525,0.00016841,2]
[420040944,1775629850823,-200.0,0.00016841,2]
[420040945,1775629850833,-1280.88388878,0.00016841,2]
[420040946,1775629850842,-771.01748645,0.00016841,2]
[420040947,1775629850851,-181.08010149,0.00016841,2]
[420040948,1775629850861,-150.0,0.00016842,2]
[420040949,1775629850871,-150.0,0.00016842,2]
[420040950,1775629850881,-500.0,0.00016843,2]
[420040951,1775629850890,-151.0,0.00016843,2]
[420040952,1775629850900,-150.0,0.00016855,2]
[420040953,1775629850910,-150.0,0.00016858,2]
[420040954,1775629850919,-280.99,0.00016862,2]
[420040955,1775629850928,-150.0,0.00016871,2]
[420040956,1775629850937,-150.0,0.00016871,2]
[420040957,1775629850947,-150.0,0.00016876,2]
[420040958,1775629850957,-150.0,0.00016877,2]
[420040959,1775629850967,-150.0,0.00016893,2]
[420040960,1775629850976,-150.0,0.00016895,2]
[420040961,1775629850985,-500.0,0.00016898,2]
[420040962,1775629850995,-151.0,0.00016898,2]
[420040963,1775629851004,-150.0,0.00016901,2]
[420040964,1775629851014,-150.0,0.00016906,2]
[420040965,1775629851024,-150.0,0.0001691,2]
[420040966,1775629851033,-150.0,0.00016923,2]
[420040967,1775629851043,-150.0,0.00016933,2]
[420040968,1775629851053,-150.0,0.00016939,2]
[420040969,1775629851063,-150.0,0.00016944,2]
[420040970,1775629851073,-150.0,0.00016947,2]
[420040971,1775629851082,-500.0,0.00016953,2]
[420040972,1775629851092,-151.0,0.00016953,2]
[420040973,1775629851102,-150.0,0.0001697,2]
[420040974,1775629851112,-150.0,0.0001697,2]
[420040975,1775629851122,-150.0,0.0001697,2]
[420040976,1775629851131,-2005.70956127,0.00016986,2]
[420040977,1775629851140,-1111.00026293,0.00016986,2]
[420040978,1775629851149,-150.0,0.00016993,2]
[420040979,1775629851159,-150.0,0.00016995,2]
[420040980,1775629851169,-150.0,0.00017001,2]
[420040981,1775629851177,-150.0,0.00017007,2]
[420040982,1775629851186,-500.0,0.00017008,2]
[420040983,1775629851195,-151.0,0.00017008,2]
[420040984,1775629851204,-150.0,0.00017017,2]
[420040985,1775629851214,-150.0,0.00017029,2]
[420040986,1775629851224,-150.0,0.00017034,2]
[420040987,1775629851233,-150.0,0.00017039,2]
[420040988,1775629851243,-150.0,0.00017044,2]
[420040989,1775629851252,-150.0,0.00017046,2]
[420040990,1775629851263,-4000.0,0.00017058,2]
[420040991,1775629851273,-150.0,0.00017062,2]
[420040992,1775629851282,-500.0,0.00017063,2]
[420040993,1775629851292,-151.0,0.00017063,2]
[420040994,1775629851302,-150.0,0.00017064,2]
[420040995,1775629851313,-150.0,0.00017069,2]
[420040996,1775629851323,-150.0,0.00017069,2]
[420040997,1775629851333,-6703.71173397,0.00017081,2]
[420040998,1775629851343,-150.0,0.00017082,2]
[420040999,1775629851353,-150.0,0.00017084,2]
[420041000,1775629851364,-150.0,0.00017097,2]
[420041001,1775629851375,-150.0,0.00017097,2]
[420041002,1775629851385,-150.0,0.00017111,2]
[420041003,1775629851396,-150.0,0.00017119,2]
[420041004,1775629851408,-150.0,0.00017124,2]
[420041005,1775629851419,-150.0,0.0001713,2]
[420041006,1775629851431,-150.0,0.00017148,2]
[420041007,1775629851442,-150.0,0.00017148,2]
[420041008,1775629851453,-150.0,0.00017156,2]